[Event "*** Titled Tuesday Blitz"]
[Site "Chess.com"]
[Date "2020.11.24"]
[Round "5"]
[White "Fy_Rakotomaharo"]
[Black "FMAntonio"]
[Result "1-0"]
[WhiteElo "2687"]
[BlackElo "2362"]
[TimeControl "180+1"]
[EndTime "11:12:14 PST"]
[Termination "Fy_Rakotomaharo won on time"]

1. e4 {[%clk 0:03:00.9]} 1... e5 {[%clk 0:02:45.6]} 2. Nf3 {[%clk 0:03:00.9]}
2... Nc6 {[%clk 0:02:43.2]} 3. d4 {[%clk 0:03:01.3]} 3... exd4 {[%clk
0:02:43.2]} 4. Bc4 {[%clk 0:03:00.4]} 4... Nf6 {[%clk 0:02:42.4]} 5. O-O {[%clk
0:02:59.2]} 5... Nxe4 {[%clk 0:02:39.4]} 6. Re1 {[%clk 0:02:59.6]} 6... d5
{[%clk 0:02:39.3]} 7. Bxd5 {[%clk 0:03:00.2]} 7... Qxd5 {[%clk 0:02:39.3]} 8.
Nc3 {[%clk 0:03:00.9]} 8... Qh5 {[%clk 0:02:38.5]} 9. Nxe4 {[%clk 0:03:01.3]}
9... Be7 {[%clk 0:02:37]} 10. Bg5 {[%clk 0:02:57.2]} 10... O-O {[%clk
0:02:33.4]} 11. Ng3 {[%clk 0:02:51.5]} 11... Qxg5 {[%clk 0:02:11.1]} 12. Nxg5
{[%clk 0:02:50.8]} 12... Bxg5 {[%clk 0:02:11.8]} 13. Qh5 {[%clk 0:02:45.5]}
13... h6 {[%clk 0:02:00.7]} 14. Rad1 {[%clk 0:02:44.3]} 14... Be6 {[%clk
0:01:56]} 15. Ne4 {[%clk 0:02:44.1]} 15... Be7 {[%clk 0:01:52.6]} 16. a3 {[%clk
0:02:44.2]} 16... b6 {[%clk 0:01:47.9]} 17. Qb5 {[%clk 0:02:42.7]} 17... Bd7
{[%clk 0:01:45.4]} 18. Ng3 {[%clk 0:02:41.1]} 18... Rad8 {[%clk 0:01:42.6]} 19.
Nf5 {[%clk 0:02:41]} 19... Bf6 {[%clk 0:01:42.1]} 20. Qd5 {[%clk 0:02:28.3]}
20... Ne5 {[%clk 0:01:26.3]} 21. Ne7+ {[%clk 0:02:19.3]} 21... Kh8 {[%clk
0:01:12.8]} 22. Rxe5 {[%clk 0:02:19.3]} 22... Bg4 {[%clk 0:01:11]} 23. Qe4
{[%clk 0:01:55.1]} 23... Bxd1 {[%clk 0:01:09.3]} 24. Nc6 {[%clk 0:01:55.3]}
24... Bxe5 {[%clk 0:00:36.6]} 25. Nxd8 {[%clk 0:01:53.6]} 25... Rxd8 {[%clk
0:00:29.4]} 26. Qxe5 {[%clk 0:01:53.7]} 26... Bxc2 {[%clk 0:00:20.6]} 27. Qxc7
{[%clk 0:01:53.1]} 27... Re8 {[%clk 0:00:20.7]} 28. f3 {[%clk 0:01:42]} 28... d3
{[%clk 0:00:19.9]} 29. Kf2 {[%clk 0:01:42.5]} 29... Kg8 {[%clk 0:00:12.3]} 30.
g4 {[%clk 0:01:34.1]} 30... b5 {[%clk 0:00:10.9]} 31. h4 {[%clk 0:01:30.8]}
31... a6 {[%clk 0:00:10.6]} 32. h5 {[%clk 0:01:30.3]} 32... Bb3 {[%clk
0:00:09.9]} 33. Qc3 {[%clk 0:01:26.9]} 33... Bc2 {[%clk 0:00:08]} 34. Kg3 {[%clk
0:01:23.8]} 34... Re2 {[%clk 0:00:05.8]} 35. Qc8+ {[%clk 0:01:19.5]} 35... Kh7
{[%clk 0:00:05.8]} 36. Qf5+ {[%clk 0:01:20.1]} 36... Kg8 {[%clk 0:00:05.7]} 37.
b4 {[%clk 0:01:03.5]} 37... Re6 {[%clk 0:00:04.9]} 38. Qc5 {[%clk 0:01:00.9]}
38... Kh7 {[%clk 0:00:02.4]} 39. Kf4 {[%clk 0:00:57.3]} 39... Kg8 {[%clk
0:00:02.5]} 40. Qc8+ {[%clk 0:00:50]} 40... Kh7 {[%clk 0:00:02.6]} 41. Qc7
{[%clk 0:00:50.6]} 41... Rf6+ {[%clk 0:00:02.6]} 42. Ke3 {[%clk 0:00:49.3]}
42... Re6+ {[%clk 0:00:02.6]} 43. Kd2 {[%clk 0:00:48.3]} 43... Re2+ {[%clk
0:00:02.8]} 44. Kc1 {[%clk 0:00:40.5]} 44... Re1+ {[%clk 0:00:02.9]} 45. Kb2
{[%clk 0:00:40.9]} 45... Rb1+ {[%clk 0:00:02.6]} 46. Ka2 {[%clk 0:00:41.4]}
46... Rd1 {[%clk 0:00:01.9]} 47. f4 {[%clk 0:00:30.7]} 1-0

[Event "*** Titled Tuesday Blitz"]
[Site "Chess.com"]
[Date "2020.11.24"]
[Round "5"]
[White "OK97"]
[Black "champ2005"]
[Result "1-0"]
[WhiteElo "2788"]
[BlackElo "2998"]
[TimeControl "180+1"]
[EndTime "11:12:15 PST"]
[Termination "OK97 won by resignation"]

1. d4 {[%clk 0:03:00.9]} 1... Nf6 {[%clk 0:02:55.8]} 2. Bg5 {[%clk 0:03:01.4]}
2... d5 {[%clk 0:02:55.5]} 3. Bxf6 {[%clk 0:03:01.5]} 3... exf6 {[%clk
0:02:54.5]} 4. e3 {[%clk 0:03:01.5]} 4... Bd6 {[%clk 0:02:54.8]} 5. Bd3 {[%clk
0:03:00.9]} 5... O-O {[%clk 0:02:44.2]} 6. Nd2 {[%clk 0:03:01.5]} 6... c6 {[%clk
0:02:42]} 7. Qf3 {[%clk 0:03:01.5]} 7... Be6 {[%clk 0:02:40.2]} 8. Ne2 {[%clk
0:03:01.7]} 8... Nd7 {[%clk 0:02:38.3]} 9. O-O-O {[%clk 0:02:57]} 9... a5 {[%clk
0:02:35.3]} 10. g4 {[%clk 0:02:54.4]} 10... a4 {[%clk 0:02:33.8]} 11. h4 {[%clk
0:02:47]} 11... a3 {[%clk 0:02:34.1]} 12. b3 {[%clk 0:02:47.1]} 12... c5 {[%clk
0:02:34.6]} 13. g5 {[%clk 0:02:12.9]} 13... c4 {[%clk 0:02:33.7]} 14. Bf5 {[%clk
0:02:12.8]} 14... Rc8 {[%clk 0:02:24.2]} 15. Rdg1 {[%clk 0:02:02.3]} 15... cxb3
{[%clk 0:02:16]} 16. Nxb3 {[%clk 0:02:00.7]} 16... g6 {[%clk 0:02:05.7]} 17. Bd3
{[%clk 0:01:48.2]} 17... Nb6 {[%clk 0:00:19.7]} 18. gxf6 {[%clk 0:01:37]} 18...
Nd7 {[%clk 0:00:20.2]} 19. h5 {[%clk 0:01:37]} 19... Qxf6 {[%clk 0:00:18.1]} 20.
Qg2 {[%clk 0:01:33.1]} 20... Bf5 {[%clk 0:00:18.5]} 21. hxg6 {[%clk 0:01:18.4]}
21... fxg6 {[%clk 0:00:15.9]} 22. Qxd5+ {[%clk 0:01:16.4]} 22... Qe6 {[%clk
0:00:13.3]} 23. Qxe6+ {[%clk 0:01:07]} 23... Bxe6 {[%clk 0:00:14.2]} 24. f4
{[%clk 0:00:58.4]} 24... Rce8 {[%clk 0:00:11.1]} 25. Kd2 {[%clk 0:00:50.9]}
25... Bd5 {[%clk 0:00:08.9]} 26. Rh5 {[%clk 0:00:43.5]} 26... Nf6 {[%clk
0:00:09.3]} 27. Rxd5 {[%clk 0:00:40.2]} 27... Nxd5 {[%clk 0:00:09.6]} 28. Bc4
{[%clk 0:00:40.8]} 28... Rf5 {[%clk 0:00:07.4]} 29. Rg5 {[%clk 0:00:33.7]} 29...
Rxg5 {[%clk 0:00:07.7]} 30. fxg5 {[%clk 0:00:34]} 30... Bb4+ {[%clk 0:00:05.8]}
31. c3 {[%clk 0:00:33.1]} 31... Be7 {[%clk 0:00:06.2]} 32. Bxd5+ {[%clk
0:00:33.4]} 32... Kg7 {[%clk 0:00:05.5]} 33. Bxb7 {[%clk 0:00:30.5]} 33... Bxg5
{[%clk 0:00:05.8]} 34. Nf4 {[%clk 0:00:27.8]} 34... Bxf4 {[%clk 0:00:05.6]} 35.
exf4 {[%clk 0:00:28]} 35... Kf6 {[%clk 0:00:06.5]} 36. c4 {[%clk 0:00:28]} 36...
Kf5 {[%clk 0:00:06.6]} 37. c5 {[%clk 0:00:27.7]} 37... Kxf4 {[%clk 0:00:06.7]}
38. c6 {[%clk 0:00:27.6]} 38... h5 {[%clk 0:00:07.5]} 39. c7 {[%clk 0:00:26.7]}
39... h4 {[%clk 0:00:08.4]} 40. c8=Q {[%clk 0:00:25.7]} 40... Rxc8 {[%clk
0:00:08.9]} 41. Bxc8 {[%clk 0:00:26.6]} 41... g5 {[%clk 0:00:09.7]} 42. Nc5
{[%clk 0:00:20.1]} 42... g4 {[%clk 0:00:10]} 43. Nd3+ {[%clk 0:00:20.3]} 43...
Kg3 {[%clk 0:00:10.6]} 44. Ne5 {[%clk 0:00:20]} 44... h3 {[%clk 0:00:08.9]} 45.
Bxg4 {[%clk 0:00:20.1]} 45... h2 {[%clk 0:00:09.8]} 46. Bf3 {[%clk 0:00:20.5]}
46... Kf4 {[%clk 0:00:10.7]} 47. Kd3 {[%clk 0:00:20]} 47... Kg3 {[%clk 0:00:11]}
48. Ke4 {[%clk 0:00:18.3]} 1-0

[Event "*** Titled Tuesday Blitz"]
[Site "Chess.com"]
[Date "2020.11.24"]
[Round "5"]
[White "Dave_ChessMate"]
[Black "YIYUKI"]
[Result "1-0"]
[WhiteElo "2465"]
[BlackElo "2336"]
[TimeControl "180+1"]
[EndTime "11:12:15 PST"]
[Termination "Dave_ChessMate won on time"]

1. d4 {[%clk 0:02:16.3]} 1... Nf6 {[%clk 0:02:54.5]} 2. c4 {[%clk 0:02:17.2]}
2... g6 {[%clk 0:02:54.5]} 3. Nc3 {[%clk 0:02:09.4]} 3... d5 {[%clk 0:02:52.7]}
4. Nf3 {[%clk 0:02:09.7]} 4... Bg7 {[%clk 0:02:49]} 5. Bg5 {[%clk 0:02:08.9]}
5... Ne4 {[%clk 0:02:47.8]} 6. cxd5 {[%clk 0:02:08.7]} 6... Nxg5 {[%clk
0:02:46.4]} 7. Nxg5 {[%clk 0:02:09.6]} 7... e6 {[%clk 0:02:46.5]} 8. Nf3 {[%clk
0:02:10]} 8... exd5 {[%clk 0:02:45.1]} 9. e3 {[%clk 0:02:10.6]} 9... O-O {[%clk
0:02:42]} 10. Be2 {[%clk 0:02:09.2]} 10... c6 {[%clk 0:02:41.9]} 11. O-O {[%clk
0:02:09.1]} 11... a5 {[%clk 0:02:41.9]} 12. Rb1 {[%clk 0:02:06.9]} 12... Be6
{[%clk 0:02:41.8]} 13. a3 {[%clk 0:02:06]} 13... Nd7 {[%clk 0:02:41.7]} 14. b4
{[%clk 0:02:04.4]} 14... axb4 {[%clk 0:02:42]} 15. axb4 {[%clk 0:02:05.3]} 15...
b5 {[%clk 0:02:42.2]} 16. Qd2 {[%clk 0:01:55.3]} 16... Nb6 {[%clk 0:02:42.2]}
17. Ne5 {[%clk 0:01:55.7]} 17... Qd6 {[%clk 0:02:32.6]} 18. f4 {[%clk
0:01:48.6]} 18... Ra3 {[%clk 0:02:26.7]} 19. Bd3 {[%clk 0:01:37.2]} 19... f6
{[%clk 0:02:24.5]} 20. Nf3 {[%clk 0:01:30.3]} 20... Nc4 {[%clk 0:02:17.8]} 21.
Bxc4 {[%clk 0:01:30.5]} 21... bxc4 {[%clk 0:02:17.8]} 22. b5 {[%clk 0:01:26.8]}
22... Bf5 {[%clk 0:01:55.3]} 23. Rb2 {[%clk 0:01:17.6]} 23... Bd3 {[%clk
0:01:54.8]} 24. Rc1 {[%clk 0:01:11.3]} 24... c5 {[%clk 0:01:36.2]} 25. b6 {[%clk
0:01:05.1]} 25... cxd4 {[%clk 0:01:31.2]} 26. Nxd4 {[%clk 0:01:06]} 26... Raa8
{[%clk 0:01:07.1]} 27. b7 {[%clk 0:00:46.9]} 27... Rab8 {[%clk 0:01:06.6]} 28.
Ra1 {[%clk 0:00:47.5]} 28... f5 {[%clk 0:01:05.8]} 29. Ra5 {[%clk 0:00:43.3]}
29... Rf7 {[%clk 0:00:43.9]} 30. Rxd5 {[%clk 0:00:38.1]} 30... Qc7 {[%clk
0:00:43.9]} 31. Rdb5 {[%clk 0:00:31.7]} 31... Qd6 {[%clk 0:00:40.3]} 32. Rd5
{[%clk 0:00:27.9]} 32... Qc7 {[%clk 0:00:39.8]} 33. Ne6 {[%clk 0:00:24.5]} 33...
Qe7 {[%clk 0:00:35.8]} 34. Rd8+ {[%clk 0:00:18.1]} 34... Rxd8 {[%clk 0:00:32]}
35. Nxd8 {[%clk 0:00:19]} 35... Bxc3 {[%clk 0:00:09.3]} 36. Qxc3 {[%clk
0:00:09.7]} 36... Qxe3+ {[%clk 0:00:09.3]} 37. Kh1 {[%clk 0:00:10.4]} 37... Re7
{[%clk 0:00:07.7]} 38. h3 {[%clk 0:00:06.4]} 38... Qxf4 {[%clk 0:00:07.5]} 39.
b8=Q {[%clk 0:00:03.9]} 1-0

[Event "*** Titled Tuesday Blitz"]
[Site "Chess.com"]
[Date "2020.11.24"]
[Round "5"]
[White "kuban1991"]
[Black "Gevo1990"]
[Result "1-0"]
[WhiteElo "2891"]
[BlackElo "2580"]
[TimeControl "180+1"]
[EndTime "11:12:16 PST"]
[Termination "kuban1991 won by checkmate"]

1. Nf3 {[%clk 0:03:00.9]} 1... Nf6 {[%clk 0:02:57.9]} 2. g3 {[%clk 0:03:00.8]}
2... g6 {[%clk 0:02:58.4]} 3. Bg2 {[%clk 0:03:01.7]} 3... Bg7 {[%clk 0:02:59.3]}
4. O-O {[%clk 0:03:01.6]} 4... O-O {[%clk 0:03:00.2]} 5. c4 {[%clk 0:03:02.1]}
5... d6 {[%clk 0:03:00.4]} 6. Nc3 {[%clk 0:03:02.5]} 6... Nc6 {[%clk 0:03:00.9]}
7. d3 {[%clk 0:03:02.3]} 7... e5 {[%clk 0:02:59.9]} 8. Rb1 {[%clk 0:03:02.7]}
8... Bg4 {[%clk 0:02:55]} 9. h3 {[%clk 0:03:00.8]} 9... Be6 {[%clk 0:02:54.2]}
10. b4 {[%clk 0:02:58.3]} 10... Qc8 {[%clk 0:02:53.9]} 11. Kh2 {[%clk
0:02:57.1]} 11... h6 {[%clk 0:02:52.5]} 12. e4 {[%clk 0:02:55.7]} 12... Ne7
{[%clk 0:02:45.8]} 13. Nd5 {[%clk 0:02:55.5]} 13... Nexd5 {[%clk 0:02:37.7]} 14.
cxd5 {[%clk 0:02:56.4]} 14... Bd7 {[%clk 0:02:37.9]} 15. Nd2 {[%clk 0:02:41.6]}
15... Qe8 {[%clk 0:02:37.4]} 16. Nc4 {[%clk 0:02:40.5]} 16... Ba4 {[%clk
0:02:36.3]} 17. Qe2 {[%clk 0:02:39.4]} 17... Qd7 {[%clk 0:02:36]} 18. Be3 {[%clk
0:02:38.2]} 18... Rfc8 {[%clk 0:02:29.3]} 19. Rbc1 {[%clk 0:02:36.7]} 19... c6
{[%clk 0:02:27]} 20. dxc6 {[%clk 0:02:32.1]} 20... Bxc6 {[%clk 0:02:26.4]} 21.
Rc3 {[%clk 0:02:14.4]} 21... Qe6 {[%clk 0:02:17.7]} 22. Na5 {[%clk 0:02:06.2]}
22... d5 {[%clk 0:02:00.4]} 23. Nxc6 {[%clk 0:02:05.7]} 23... bxc6 {[%clk
0:01:55.9]} 24. Bc5 {[%clk 0:02:03.9]} 24... d4 {[%clk 0:01:53]} 25. Ra3 {[%clk
0:02:00.3]} 25... Nd7 {[%clk 0:01:50.8]} 26. Rc1 {[%clk 0:02:00.2]} 26... Nxc5
{[%clk 0:01:49.9]} 27. Rxc5 {[%clk 0:01:56.4]} 27... Bf8 {[%clk 0:01:49.6]} 28.
Rc4 {[%clk 0:01:56.5]} 28... Rcb8 {[%clk 0:01:30.5]} 29. Ra4 {[%clk 0:01:42.1]}
29... Rb6 {[%clk 0:01:15]} 30. h4 {[%clk 0:01:42.3]} 30... Bd6 {[%clk
0:01:11.3]} 31. h5 {[%clk 0:01:35.3]} 31... Qe7 {[%clk 0:01:09]} 32. Qg4 {[%clk
0:01:33.1]} 32... Kg7 {[%clk 0:01:07.8]} 33. a3 {[%clk 0:01:31.5]} 33... Rf8
{[%clk 0:00:58.9]} 34. Bh3 {[%clk 0:01:29.9]} 34... a6 {[%clk 0:00:37.3]} 35.
Qd7 {[%clk 0:01:23.7]} 35... f5 {[%clk 0:00:26]} 36. Qxe7+ {[%clk 0:01:13.1]}
36... Bxe7 {[%clk 0:00:26]} 37. exf5 {[%clk 0:01:06.4]} 37... gxf5 {[%clk
0:00:25.6]} 38. Bg2 {[%clk 0:01:07]} 38... Rf6 {[%clk 0:00:24.3]} 39. Ra5 {[%clk
0:00:59.4]} 39... Re6 {[%clk 0:00:24]} 40. Bh3 {[%clk 0:00:50.5]} 40... Kf6
{[%clk 0:00:23.1]} 41. g4 {[%clk 0:00:50.6]} 41... fxg4 {[%clk 0:00:22.8]} 42.
Bxg4 {[%clk 0:00:51.5]} 42... Rd6 {[%clk 0:00:23.2]} 43. Kg3 {[%clk 0:00:50.9]}
43... Rd5 {[%clk 0:00:19]} 44. Ra4 {[%clk 0:00:46.4]} 44... c5 {[%clk
0:00:14.4]} 45. Bf3 {[%clk 0:00:45.4]} 45... Rd8 {[%clk 0:00:10.4]} 46. bxc5
{[%clk 0:00:45.2]} 46... Rg8+ {[%clk 0:00:10.9]} 47. Kh3 {[%clk 0:00:43]} 47...
Rb3 {[%clk 0:00:10.7]} 48. Rxa6+ {[%clk 0:00:42.5]} 48... Kf5 {[%clk 0:00:11.1]}
49. Be4+ {[%clk 0:00:42.8]} 49... Kf4 {[%clk 0:00:11.5]} 50. Rg6 {[%clk
0:00:41.6]} 50... Rf8 {[%clk 0:00:09.9]} 51. c6 {[%clk 0:00:41.6]} 51... Bg5
{[%clk 0:00:09.6]} 52. c7 {[%clk 0:00:40.7]} 52... Rc8 {[%clk 0:00:06.6]} 53.
Rcc6 {[%clk 0:00:39.6]} 53... Rb2 {[%clk 0:00:05.7]} 54. Rcf6+ {[%clk
0:00:39.2]} 54... Bxf6 {[%clk 0:00:05.5]} 55. Rg4# {[%clk 0:00:40.1]} 1-0

[Event "*** Titled Tuesday Blitz"]
[Site "Chess.com"]
[Date "2020.11.24"]
[Round "5"]
[White "MrChampion_Coach"]
[Black "Saylormoon"]
[Result "1-0"]
[WhiteElo "2518"]
[BlackElo "2350"]
[TimeControl "180+1"]
[EndTime "11:12:16 PST"]
[Termination "MrChampion_Coach won by resignation"]

1. d4 {[%clk 0:03:00.9]} 1... Nf6 {[%clk 0:02:59.6]} 2. c4 {[%clk 0:02:59.7]}
2... e6 {[%clk 0:02:59.5]} 3. Nc3 {[%clk 0:02:58]} 3... c5 {[%clk 0:02:59.7]} 4.
d5 {[%clk 0:02:56.6]} 4... exd5 {[%clk 0:02:58.3]} 5. cxd5 {[%clk 0:02:57.5]}
5... d6 {[%clk 0:02:56.9]} 6. Bf4 {[%clk 0:02:57.7]} 6... a6 {[%clk 0:02:56.5]}
7. e3 {[%clk 0:02:57.8]} 7... g6 {[%clk 0:02:56.6]} 8. Be2 {[%clk 0:02:50.1]}
8... Bg7 {[%clk 0:02:56.2]} 9. Nf3 {[%clk 0:02:42]} 9... O-O {[%clk 0:02:55.6]}
10. O-O {[%clk 0:02:42.4]} 10... Qe7 {[%clk 0:02:55.7]} 11. a4 {[%clk
0:02:39.1]} 11... Nbd7 {[%clk 0:02:53.4]} 12. a5 {[%clk 0:02:39.1]} 12... Nh5
{[%clk 0:02:51.3]} 13. Bg5 {[%clk 0:02:38.7]} 13... f6 {[%clk 0:02:40.2]} 14.
Bh4 {[%clk 0:02:38.1]} 14... g5 {[%clk 0:02:40.6]} 15. Nd2 {[%clk 0:02:35.9]}
15... gxh4 {[%clk 0:02:22.8]} 16. Bxh5 {[%clk 0:02:34.6]} 16... Ne5 {[%clk
0:02:23.3]} 17. f4 {[%clk 0:02:06.6]} 17... Nd3 {[%clk 0:02:16.1]} 18. Nc4
{[%clk 0:01:55.6]} 18... Nxb2 {[%clk 0:02:11.1]} 19. Nxb2 {[%clk 0:01:53.5]}
19... Qxe3+ {[%clk 0:02:11.1]} 20. Rf2 {[%clk 0:01:50.1]} 20... Qxc3 {[%clk
0:02:11.2]} 21. Ra4 {[%clk 0:01:39.4]} 21... f5 {[%clk 0:02:10.9]} 22. Kf1
{[%clk 0:01:14.8]} 22... Bd7 {[%clk 0:02:08]} 23. Rc4 {[%clk 0:01:12.7]} 23...
Bb5 {[%clk 0:02:07.9]} 24. Rc2 {[%clk 0:01:05.5]} 24... Bxc4+ {[%clk 0:01:59.4]}
25. Nxc4 {[%clk 0:01:06.4]} 25... Qb4 {[%clk 0:01:43.9]} 26. Be2 {[%clk
0:01:04.6]} 26... Rae8 {[%clk 0:01:40.4]} 27. g3 {[%clk 0:01:02.9]} 27... hxg3
{[%clk 0:01:39.2]} 28. hxg3 {[%clk 0:01:03.8]} 28... Re4 {[%clk 0:01:38.9]} 29.
Nxd6 {[%clk 0:01:02.4]} 29... Rd4 {[%clk 0:01:25]} 30. Qc1 {[%clk 0:00:56.9]}
30... Rd8 {[%clk 0:01:11.9]} 31. Nxf5 {[%clk 0:00:50.6]} 31... R4xd5 {[%clk
0:00:53.6]} 32. Bc4 {[%clk 0:00:35.4]} 32... Qxc4+ {[%clk 0:00:50.9]} 33. Rxc4
{[%clk 0:00:29.7]} 33... Rd1+ {[%clk 0:00:50.6]} 34. Ke2 {[%clk 0:00:28.9]}
34... Rxc1 {[%clk 0:00:50.3]} 35. Rxc1 {[%clk 0:00:29.8]} 35... Bd4 {[%clk
0:00:48.6]} 36. Rb1 {[%clk 0:00:24.1]} 36... Rd7 {[%clk 0:00:46.3]} 37. Kd3
{[%clk 0:00:24.4]} 37... Kf7 {[%clk 0:00:33.8]} 38. Ke4 {[%clk 0:00:22.3]} 38...
Bf2 {[%clk 0:00:29.8]} 39. Rb2 {[%clk 0:00:21]} 39... Re7+ {[%clk 0:00:29.4]}
40. Kd5 {[%clk 0:00:19.8]} 40... Rd7+ {[%clk 0:00:28.5]} 41. Ke4 {[%clk
0:00:17.5]} 41... Bd4 {[%clk 0:00:25.3]} 42. Rh2 {[%clk 0:00:17.3]} 42... Kg6
{[%clk 0:00:23.6]} 43. Rh6+ {[%clk 0:00:17.1]} 43... Kf7 {[%clk 0:00:21.8]} 44.
Rxh7+ {[%clk 0:00:17.5]} 44... Ke6 {[%clk 0:00:22.3]} 45. Rxd7 {[%clk
0:00:16.8]} 45... Kxd7 {[%clk 0:00:22.5]} 46. Nxd4 {[%clk 0:00:17.3]} 46... cxd4
{[%clk 0:00:22.6]} 47. Kxd4 {[%clk 0:00:18.2]} 47... Kc6 {[%clk 0:00:22.4]} 48.
Kc4 {[%clk 0:00:18.5]} 48... Kd6 {[%clk 0:00:21.3]} 1-0

[Event "*** Titled Tuesday Blitz"]
[Site "Chess.com"]
[Date "2020.11.24"]
[Round "5"]
[White "J36225"]
[Black "penguingm1"]
[Result "0-1"]
[WhiteElo "2454"]
[BlackElo "2961"]
[TimeControl "180+1"]
[EndTime "11:12:17 PST"]
[Termination "penguingm1 won by resignation"]

1. e4 {[%clk 0:03:00.9]} 1... b5 {[%clk 0:03:00.2]} 2. Bxb5 {[%clk 0:02:59.1]}
2... f5 {[%clk 0:03:00.8]} 3. exf5 {[%clk 0:02:56.5]} 3... c6 {[%clk 0:03:01.3]}
4. Be2 {[%clk 0:02:51.8]} 4... d5 {[%clk 0:02:30.6]} 5. Bh5+ {[%clk 0:02:47.4]}
5... Kd7 {[%clk 0:02:24.9]} 6. d4 {[%clk 0:02:46.8]} 6... Nf6 {[%clk 0:02:21.7]}
7. Bf4 {[%clk 0:02:41.5]} 7... Qb6 {[%clk 0:02:13.1]} 8. Bf7 {[%clk 0:01:54.9]}
8... Qxb2 {[%clk 0:02:07.8]} 9. Be6+ {[%clk 0:01:54.7]} 9... Kd8 {[%clk
0:02:07.3]} 10. Bxc8 {[%clk 0:01:52.2]} 10... Kxc8 {[%clk 0:01:54.7]} 11. Nd2
{[%clk 0:01:48.7]} 11... Qxd4 {[%clk 0:01:53.3]} 12. Be3 {[%clk 0:01:46.5]}
12... Qe5 {[%clk 0:01:51.5]} 13. Ngf3 {[%clk 0:01:45.8]} 13... Qxf5 {[%clk
0:01:51.6]} 14. c4 {[%clk 0:01:42.6]} 14... e5 {[%clk 0:01:29.7]} 15. cxd5
{[%clk 0:01:40.9]} 15... cxd5 {[%clk 0:01:30]} 16. Rc1+ {[%clk 0:01:40.4]} 16...
Kd7 {[%clk 0:01:30.5]} 17. Qa4+ {[%clk 0:01:39]} 17... Ke7 {[%clk 0:01:23.6]}
18. Rc7+ {[%clk 0:01:34.2]} 18... Nbd7 {[%clk 0:01:23.9]} 19. Bg5 {[%clk
0:01:21.7]} 19... Kd8 {[%clk 0:00:56.1]} 20. Rb7 {[%clk 0:01:14.6]} 20... Bc5
{[%clk 0:00:48.7]} 21. O-O {[%clk 0:01:10.7]} 21... Re8 {[%clk 0:00:41.7]} 22.
Nb3 {[%clk 0:00:53.5]} 22... Bb6 {[%clk 0:00:39.9]} 23. Rc1 {[%clk 0:00:33]}
23... Re7 {[%clk 0:00:29.8]} 24. Na5 {[%clk 0:00:29.5]} 24... Bxa5 {[%clk
0:00:14.7]} 25. Qxa5+ {[%clk 0:00:28.5]} 25... Ke8 {[%clk 0:00:15.2]} 26. Rcc7
{[%clk 0:00:26.5]} 26... e4 {[%clk 0:00:10.9]} 27. Bxf6 {[%clk 0:00:21.5]} 27...
exf3 {[%clk 0:00:04.1]} 28. Bxe7 {[%clk 0:00:20.1]} 28... Qg4 {[%clk 0:00:04.2]}
29. Kf1 {[%clk 0:00:15.2]} 29... Qxg2+ {[%clk 0:00:04.4]} 30. Ke1 {[%clk
0:00:15.5]} 30... Qg1+ {[%clk 0:00:04.8]} 31. Kd2 {[%clk 0:00:15.8]} 31... Qxf2+
{[%clk 0:00:05.2]} 32. Kc3 {[%clk 0:00:16]} 32... Qe1+ {[%clk 0:00:04.8]} 33.
Kd3 {[%clk 0:00:13.3]} 33... Qxa5 {[%clk 0:00:04.9]} 34. Rxd7 {[%clk 0:00:12.9]}
34... Qa6+ {[%clk 0:00:04.6]} 35. Kd4 {[%clk 0:00:12.5]} 35... Qc4+ {[%clk
0:00:03.1]} 36. Ke5 {[%clk 0:00:12.4]} 36... Qe4+ {[%clk 0:00:03.3]} 37. Kd6
{[%clk 0:00:12.5]} 37... Qf4+ {[%clk 0:00:03.6]} 38. Kc6 {[%clk 0:00:12.6]}
38... Rc8+ {[%clk 0:00:03.1]} 39. Kb5 {[%clk 0:00:11.5]} 39... Qc4+ {[%clk
0:00:02.7]} 40. Ka5 {[%clk 0:00:10.7]} 40... f2 {[%clk 0:00:01.9]} 41. Bd6
{[%clk 0:00:09.4]} 41... Qc3+ {[%clk 0:00:01.9]} 42. Ka6 {[%clk 0:00:09.5]}
42... Qc6+ {[%clk 0:00:02.3]} 43. Ka5 {[%clk 0:00:09.3]} 43... Qxd7 {[%clk
0:00:02.7]} 0-1

[Event "*** Titled Tuesday Blitz"]
[Site "Chess.com"]
[Date "2020.11.24"]
[Round "5"]
[White "tteshan"]
[Black "WPWPWP-2015"]
[Result "0-1"]
[WhiteElo "2374"]
[BlackElo "2526"]
[TimeControl "180+1"]
[EndTime "11:12:17 PST"]
[Termination "WPWPWP-2015 won by resignation"]

1. e4 {[%clk 0:03:00.9]} 1... c5 {[%clk 0:02:56.8]} 2. c3 {[%clk 0:03:00.8]}
2... Nf6 {[%clk 0:02:55.5]} 3. e5 {[%clk 0:03:00.5]} 3... Nd5 {[%clk 0:02:55]}
4. Nf3 {[%clk 0:03:01]} 4... e6 {[%clk 0:02:53.9]} 5. d4 {[%clk 0:03:01.1]} 5...
cxd4 {[%clk 0:02:53.5]} 6. cxd4 {[%clk 0:03:02]} 6... d6 {[%clk 0:02:52.3]} 7.
Bc4 {[%clk 0:03:01.9]} 7... Be7 {[%clk 0:02:49.4]} 8. Qe2 {[%clk 0:03:01]} 8...
Bd7 {[%clk 0:02:47.2]} 9. O-O {[%clk 0:03:00.3]} 9... Bc6 {[%clk 0:02:46.7]} 10.
exd6 {[%clk 0:02:59.1]} 10... Qxd6 {[%clk 0:02:45.4]} 11. Nc3 {[%clk 0:02:54.7]}
11... Nxc3 {[%clk 0:02:36.4]} 12. bxc3 {[%clk 0:02:55.6]} 12... Nd7 {[%clk
0:02:36]} 13. Re1 {[%clk 0:02:48.5]} 13... a6 {[%clk 0:02:20.8]} 14. a4 {[%clk
0:02:36.4]} 14... Nb6 {[%clk 0:02:20.1]} 15. Bb3 {[%clk 0:02:31.2]} 15... O-O
{[%clk 0:02:09.8]} 16. a5 {[%clk 0:02:17.5]} 16... Nd5 {[%clk 0:02:06.3]} 17. c4
{[%clk 0:01:48.5]} 17... Nf4 {[%clk 0:02:02.1]} 18. Bxf4 {[%clk 0:01:39.9]}
18... Qxf4 {[%clk 0:02:01.5]} 19. d5 {[%clk 0:01:38.4]} 19... Bd7 {[%clk
0:01:55.1]} 20. Ba4 {[%clk 0:01:23.2]} 20... Bc8 {[%clk 0:01:51.1]} 21. Qd3
{[%clk 0:00:45.3]} 21... Bb4 {[%clk 0:01:14.3]} 22. Re4 {[%clk 0:00:44.7]} 22...
Qf6 {[%clk 0:01:13]} 23. Rb1 {[%clk 0:00:33.3]} 23... exd5 {[%clk 0:01:11.8]}
24. Qxd5 {[%clk 0:00:28]} 24... Bd6 {[%clk 0:00:49.1]} 25. Rb6 {[%clk
0:00:19.9]} 25... Qa1+ {[%clk 0:00:38.9]} 26. Bd1 {[%clk 0:00:20.1]} 26... Bc7
{[%clk 0:00:34.8]} 27. Rb3 {[%clk 0:00:16.4]} 27... Be6 {[%clk 0:00:30.1]} 28.
Qd2 {[%clk 0:00:15.5]} 28... Rad8 {[%clk 0:00:26.1]} 29. Rd3 {[%clk 0:00:15.9]}
29... Bxa5 {[%clk 0:00:18.5]} 30. Qe2 {[%clk 0:00:09.8]} 30... Rxd3 {[%clk
0:00:12.5]} 31. Qxd3 {[%clk 0:00:10.7]} 31... Rd8 {[%clk 0:00:11.9]} 32. Rd4
{[%clk 0:00:10.1]} 32... Rxd4 {[%clk 0:00:10.9]} 33. Nxd4 {[%clk 0:00:10.7]}
33... Bxc4 {[%clk 0:00:09.7]} 34. Qc2 {[%clk 0:00:06.3]} 34... Qxd4 {[%clk
0:00:06.6]} 35. h3 {[%clk 0:00:04.6]} 35... Bb6 {[%clk 0:00:06]} 36. Bf3 {[%clk
0:00:03.6]} 36... g6 {[%clk 0:00:03.4]} 37. Bxb7 {[%clk 0:00:03.7]} 37... a5
{[%clk 0:00:03.5]} 38. Qb1 {[%clk 0:00:01.8]} 38... a4 {[%clk 0:00:03.4]} 39.
Qc2 {[%clk 0:00:01.7]} 39... a3 {[%clk 0:00:03.6]} 40. Bc6 {[%clk 0:00:02]}
40... a2 {[%clk 0:00:03.8]} 41. Qc1 {[%clk 0:00:02.3]} 0-1